bitfinex/quotes_ETHUSD_20250623
["timestamp","ask_amount","ask_price","bid_price","bid_amount"]
[1750690001562,0.55,2285.1,2284.8,4.37674015]
[1750690001879,0.55,2285.1,2284.7,4.37683079]
[1750690002081,0.55,2285.1,2284.8,4.37663029]
[1750690002282,0.55,2285.1,2284.7,4.37683494]
[1750690002795,0.55,2285.1,2284.8,4.37662531]
[1750690003510,7.649,2285.5,2284.7,4.3769133]
[1750690003511,0.9297,2285.7,2285.3,4.37568394]
[1750690003712,0.9297,2285.7,2285.2,4.3759073]
[1750690003913,11.82428871,2285.7,2285.1,4.37608776]
[1750690004115,10.0,2285.6,2285.1,4.37608776]
[1750690004304,10.0,2285.6,2284.6,0.9561]
[1750690004305,10.89458871,2285.4,2284.6,0.9561]
[1750690004600,0.55,2285.0,2284.9,4.37655914]
[1750690005418,0.872,2285.3,2284.6,0.911]
[1750690005619,0.55,2285.0,2284.6,0.911]
[1750690005790,0.55,2285.0,2284.9,4.37655914]
[1750690005984,0.872,2285.3,2284.6,4.37713385]
[1750690006185,0.55,2285.2,2285.0,4.37624152]
[1750690006414,0.55,2285.2,2285.1,4.37617609]
[1750690006711,0.9272,2285.6,2284.9,0.9529]
[1750690006910,0.55,2285.5,2285.1,8.75208868]
[1750690007115,0.55,2285.5,2285.2,4.37583693]
[1750690007280,0.55,2285.5,2285.1,4.37607299]
[1750690007480,0.55,2285.5,2285.2,4.37597152]
[1750690007696,0.55,2285.5,2285.1,4.37607632]
[1750690007924,0.55,2285.5,2285.2,4.37595288]
[1750690008301,0.55,2285.5,2285.3,4.37578809]
[1750690008502,0.55,2285.5,2285.0,4.37623602]
[1750690008750,0.55,2285.5,2285.1,4.37599277]
[1750690009039,0.55,2285.5,2285.1,4.37606302]
[1750690009614,0.55,2285.5,2285.1,4.37617414]
[1750690009938,12.8105516,2285.5,2284.7,0.8965]
[1750690010090,12.8105516,2285.5,2284.8,4.37663545]
[1750690010290,0.9415,2285.4,2284.7,7.651]
[1750690010511,0.9415,2285.4,2285.1,4.37609837]
[1750690010714,0.9415,2285.4,2285.0,4.3762545]
[1750690010917,0.55,2285.3,2284.8,4.37672928]
[1750690011543,0.55,2285.3,2285.0,4.37629095]
[1750690012191,0.55,2285.3,2284.9,4.37646314]
[1750690012521,0.55,2285.3,2284.7,12.02779614]
[1750690012701,0.55,2285.3,2284.8,4.37674995]
[1750690013325,0.55,2285.3,2284.8,4.37667877]
[1750690013527,0.55,2285.3,2284.8,4.3767507]
[1750690013824,0.55,2285.3,2284.9,4.37642784]
[1750690014024,0.55,2285.3,2284.8,4.37665008]
[1750690014616,0.55,2285.3,2285.0,4.37629201]
[1750690014813,0.55,2285.3,2284.7,12.02783224]
[1750690015017,0.55,2285.3,2284.9,4.37654678]
[1750690015931,0.55,2285.3,2284.8,4.37659284]
[1750690016133,0.55,2285.3,2284.9,4.3764398]
[1750690016294,0.55,2285.3,2284.9,4.37639075]
[1750690016496,0.55,2285.3,2284.9,4.37638075]
[1750690016829,0.55,2285.3,2284.7,12.02784845]
[1750690016998,0.55,2285.3,2285.0,4.37618599]
[1750690017197,0.55,2285.3,2285.0,4.37623881]
[1750690018243,0.55,2285.3,2285.1,4.37615595]
[1750690018543,0.55,2285.3,2285.0,4.37624898]
[1750690019344,0.55,2285.3,2285.1,4.37616402]
[1750690019645,2.152,2285.6,2285.1,4.37616402]
[1750690019646,0.9248,2285.9,2285.3,4.37579311]
[1750690019942,10.0,2285.8,2285.2,4.37582535]
[1750690020143,0.55,2285.7,2285.4,4.37550588]
[1750690020345,0.9248,2285.6,2284.6,0.8947]
[1750690020642,0.55,2285.3,2284.7,14.17893881]
[1750690020844,10.9248,2285.6,2285.3,4.37563334]
[1750690020845,0.9248,2285.6,2285.3,4.37563334]
[1750690021051,0.9248,2285.6,2285.4,4.375533]
[1750690021248,0.8948,2285.8,2285.6,4.37520679]
[1750690021415,0.8948,2285.8,2285.7,4.37502734]
[1750690021610,18.37167829,2286.3,2285.7,4.37502734]
[1750690021611,1.92118738,2286.1,2285.8,4.3746794]
[1750690021808,0.8737,2286.3,2285.7,4.37502734]
[1750690022011,0.8737,2286.3,2285.8,12.02379719]
[1750690022330,1.90156076,2286.5,2286.0,4.3743111]
[1750690022535,0.8737,2286.5,2286.1,4.37417492]
[1750690022732,0.8737,2286.5,2286.2,4.37398368]
[1750690022947,1.02813341,2286.6,2286.4,4.37368789]
[1750690023146,0.9536,2286.8,2286.3,4.37374717]
[1750690023345,0.9536,2286.8,2285.9,5.30134008]
[1750690023546,0.9536,2286.8,2286.3,4.37375518]
[1750690023755,0.9536,2286.8,2286.4,4.37368157]
[1750690024065,0.9536,2286.8,2286.6,4.37319722]
[1750690024357,0.8801,2287.0,2286.7,4.37308255]
[1750690024559,0.8801,2287.0,2286.4,12.91025665]
[1750690024730,21.44458871,2286.9,2286.4,7.648]
[1750690024924,11.44458871,2286.9,2286.4,7.648]
[1750690025351,21.44458871,2286.9,2286.4,7.648]
[1750690025552,21.44458871,2286.9,2286.2,4.37399717]
[1750690025553,0.55,2286.5,2286.2,7.648]
[1750690025751,10.55,2286.5,2286.0,12.02136628]
[1750690025939,10.55,2286.5,2286.2,4.37405719]
[1750690026326,10.55,2286.5,2286.0,7.647]
[1750690026527,0.55,2286.5,2286.2,4.37394501]
[1750690027063,0.926,2286.6,2286.0,7.647]
[1750690027239,10.0,2287.0,2286.2,0.8985]
[1750690027439,13.49156628,2287.0,2286.3,4.37381046]
[1750690027657,13.49156628,2287.0,2286.3,4.37387919]
[1750690027962,0.55,2286.9,2286.2,4.37393619]
[1750690028273,0.55,2286.9,2286.3,4.37387919]
[1750690028274,0.55,2286.7,2286.3,4.37387919]
[1750690028483,0.55,2286.5,2286.2,7.646]
[1750690028633,0.55,2286.5,2286.0,4.37436754]
[1750690028833,0.55,2286.5,2286.1,4.37415791]
[1750690029437,0.55,2286.5,2285.9,7.644]
[1750690029759,0.55,2286.5,2285.9,12.0185377]
[1750690029935,1.78142887,2286.5,2286.0,4.374445]
[1750690030264,0.55,2286.5,2286.1,4.37417295]
[1750690030830,0.55,2286.3,2285.9,12.01856935]
[1750690031169,0.55,2286.1,2285.7,7.644]
[1750690031474,0.8663,2286.0,2285.4,4.37550203]
[1750690031675,0.55,2285.9,2285.5,4.3754067]
[1750690032154,0.55,2285.9,2285.2,0.9445]
[1750690032359,0.55,2285.9,2285.6,4.37505006]
[1750690032658,0.55,2285.9,2285.4,4.37544687]
[1750690033170,10.0,2285.8,2285.2,4.37587658]
[1750690033373,10.0,2285.8,2285.3,4.37567409]
[1750690033557,10.0,2285.8,2285.4,4.37558068]
[1750690033954,0.8663,2286.0,2285.5,4.37530958]
[1750690034288,0.55,2285.9,2285.5,4.37530958]
[1750690034482,0.55,2285.9,2285.4,4.37549466]
[1750690035057,0.55,2285.9,2285.4,4.37558646]
[1750690035364,0.55,2285.9,2285.3,4.37571485]
[1750690035565,0.55,2285.9,2285.3,4.37564727]
[1750690035954,0.55,2285.9,2285.3,7.643]
[1750690036390,0.55,2285.9,2285.4,4.37549642]
[1750690037258,0.55,2285.9,2285.4,4.37558781]
[1750690037259,0.55,2285.7,2285.4,4.37558781]
[1750690037458,7.76,2285.6,2285.5,4.37541019]
[1750690037658,7.76,2285.7,2285.6,4.37521876]
[1750690037885,7.76,2285.7,2285.6,12.95691876]
[1750690038099,7.76,2286.2,2286.0,4.3743732]
[1750690038411,10.0,2286.2,2285.7,4.3749189]
[1750690038558,10.0,2286.2,2285.6,12.01706092]
[1750690038559,0.55,2286.1,2285.6,12.01706092]
[1750690038759,0.55,2286.1,2285.7,4.37493418]
[1750690038958,10.0,2286.2,2285.7,4.37493418]
[1750690038959,0.55,2286.2,2285.7,4.37484769]
[1750690039262,10.55,2286.2,2285.6,7.642]
[1750690039576,21.44458871,2286.2,2285.6,12.01711559]
[1750690039773,23.94247523,2286.2,2285.6,4.37511559]
[1750690039974,23.94247523,2286.2,2285.6,12.01711559]
[1750690040194,0.55,2286.0,2285.6,12.01711559]
[1750690040373,0.55,2286.0,2285.7,4.37494347]
[1750690040570,0.55,2286.0,2285.6,7.642]
[1750690040759,0.9446,2285.9,2285.6,7.642]
[1750690040960,0.9446,2285.9,2285.6,12.01712547]
[1750690041696,0.9446,2285.9,2285.7,4.3749957]
[1750690041904,0.9446,2285.9,2285.7,4.37500678]
[1750690042074,0.9446,2285.9,2285.6,7.642]
[1750690042275,0.9446,2285.9,2285.5,4.37536285]
[1750690042600,10.0,2285.8,2285.5,12.01639395]
[1750690042797,0.55,2285.7,2285.4,4.37549638]
[1750690043010,0.55,2285.7,2285.4,12.01649638]
[1750690043211,0.55,2285.7,2285.4,4.37549638]
[1750690043896,0.55,2285.5,2285.2,4.3759697]
[1750690044103,0.55,2285.5,2285.3,7.641]
[1750690044287,0.55,2285.5,2285.3,4.37578871]
[1750690044485,0.55,2285.5,2285.2,4.37587343]
[1750690044883,0.55,2285.5,2285.3,4.37576705]
[1750690045191,0.55,2285.5,2285.4,4.37560164]
[1750690045376,0.55,2285.5,2285.3,4.37569223]
[1750690046605,0.55,2285.5,2285.3,12.01572166]
[1750690047316,0.55,2285.5,2285.4,4.37560164]
[1750690048038,0.55,2285.5,2285.3,12.01571377]
[1750690048513,8.31,2285.5,2285.3,12.01571377]
[1750690048730,7.76,2285.5,2285.3,12.01563478]
[1750690048871,17.76,2285.8,2285.7,4.37502734]
[1750690049074,7.76,2285.8,2285.7,12.01402734]
[1750690049325,7.76,2285.8,2285.7,12.90632734]
[1750690052290,7.76,2285.8,2285.7,4.37502734]
[1750690052495,0.8677,2285.9,2285.7,7.639]
[1750690052697,0.8677,2285.9,2285.7,12.01394908]
[1750690052991,10.0,2286.1,2285.7,7.639]
[1750690053218,10.9533,2286.1,2285.6,4.37511831]
[1750690053527,10.9533,2286.1,2285.7,12.01294032]
[1750690053835,0.8809,2285.7,2285.0,0.9298]
[1750690054139,10.0,2285.5,2285.1,7.638]
[1750690054302,7.76,2285.5,2285.2,4.37593397]
[1750690054507,7.76,2285.5,2285.3,4.37578071]
[1750690054690,7.76,2285.5,2285.4,4.37560164]
[1750690054894,7.76,2285.5,2285.4,7.637]
[1750690055294,8.31,2285.5,2285.4,7.637]
[1750690055634,0.55,2285.4,2285.2,7.637]
[1750690056336,0.55,2285.4,2285.2,12.01297474]
[1750690056736,0.55,2285.4,2285.2,7.637]
[1750690057203,10.55,2285.4,2284.8,2.148]
[1750690057544,10.55,2285.4,2284.6,5.27708258]
[1750690057545,10.55,2285.2,2284.6,5.27708258]
[1750690057695,10.55,2285.0,2284.5,0.2213009]
[1750690057899,24.20902804,2285.0,2284.6,12.0140091]
[1750690058297,24.20902804,2285.0,2284.6,7.637]
[1750690058494,0.9144,2284.8,2284.6,7.636]
[1750690059416,0.9144,2284.8,2284.6,12.01305638]
[1750690059614,0.9144,2284.8,2284.6,7.636]
[1750690059945,7.76,2284.9,2284.7,4.37694226]
[1750690060297,7.76,2284.9,2284.8,4.3767507]
[1750690060298,17.76,2284.9,2284.8,4.3767507]
[1750690060501,0.8331,2285.9,2285.0,4.37635605]
[1750690060709,7.76,2285.8,2285.6,4.3751939]
[1750690060945,7.76,2285.9,2285.8,4.37483594]
[1750690061294,17.76,2285.9,2285.8,4.37483594]
[1750690061501,10.0,2285.8,2285.7,12.01095087]
[1750690061702,7.76,2285.9,2285.8,4.37483594]
[1750690062339,10.0,2285.8,2285.7,12.0109224]
[1750690062545,10.0,2285.8,2285.7,7.636]
[1750690063315,10.0,2285.8,2285.6,7.635]
[1750690063934,0.55,2285.6,2285.3,7.635]
[1750690064507,0.55,2285.4,2285.2,7.635]
[1750690065313,0.55,2285.4,2285.2,12.0109559]
[1750690065630,0.55,2285.4,2285.1,4.37607761]
[1750690065842,0.55,2285.4,2285.2,7.635]
[1750690066002,0.55,2285.6,2285.3,4.37578202]
[1750690066205,0.8319,2285.7,2285.2,7.635]
[1750690066441,0.8319,2285.7,2285.3,4.37562154]
[1750690066818,0.8319,2285.7,2285.3,4.37577965]
[1750690067042,0.8319,2285.7,2285.3,7.634]
[1750690067740,10.8947,2285.5,2284.2,21.3514]
[1750690067948,10.8947,2285.5,2285.1,4.37607814]
[1750690068449,0.55,2285.4,2285.0,7.634]
[1750690068742,0.55,2285.4,2285.0,12.01035947]
[1750690069040,0.55,2285.4,2285.0,7.634]
[1750690069239,0.55,2285.4,2285.0,12.01028064]
[1750690069414,0.55,2285.4,2285.0,12.00928064]
[1750690070041,0.8947,2285.5,2285.0,7.633]
[1750690070339,0.8947,2285.5,2285.3,4.37576124]
[1750690070643,0.9029,2285.8,2285.4,4.37560164]
[1750690071342,0.9029,2285.8,2285.4,7.633]
[1750690071642,0.9029,2285.8,2285.0,2.142]
[1750690071643,0.8272,2285.4,2285.0,4.37624657]
[1750690071860,0.8272,2285.4,2285.1,4.37607342]
[1750690072013,0.8272,2285.4,2285.0,7.633]
[1750690072530,10.0,2285.2,2285.0,7.633]
[1750690072741,0.55,2285.3,2285.0,12.00935017]
[1750690072940,0.55,2285.3,2285.0,7.633]
[1750690074026,0.8272,2285.4,2285.0,12.00928188]
[1750690074233,0.8272,2285.4,2285.1,4.37615179]
[1750690074467,0.8272,2285.4,2285.2,4.37598017]
[1750690074666,1.4521,2285.6,2285.2,4.37598017]
[1750690074872,1.4521,2285.6,2285.1,4.37606223]
[1750690075019,10.0,2285.5,2285.0,12.00927873]
[1750690075220,10.0,2285.5,2285.1,4.37616679]
[1750690075544,2.59731,2285.6,2285.1,4.37616679]
[1750690075545,1.4521,2285.6,2285.1,4.37616679]
[1750690076059,1.4521,2285.6,2285.2,4.37596812]
[1750690077051,1.4521,2285.6,2285.1,4.37608842]
[1750690077421,1.4521,2285.6,2285.0,12.00923275]
[1750690077617,0.55,2285.4,2284.6,0.8585]
[1750690077822,0.55,2285.4,2284.9,4.37643086]
[1750690078022,0.55,2285.4,2285.0,7.631]
[1750690079722,0.55,2285.4,2285.0,12.00735924]
[1750690080441,0.55,2285.4,2285.0,7.631]
[1750690080759,1.055,2285.3,2284.9,12.0064099]
[1750690081052,0.55,2285.4,2284.9,7.63]
[1750690081425,0.55,2285.4,2284.9,12.00648109]
[1750690081627,0.55,2285.4,2284.9,7.63]
[1750690081823,10.55,2285.2,2284.7,4.37685305]
[1750690082338,10.0,2285.1,2284.7,4.37685374]
[1750690082561,0.55,2285.0,2284.6,7.629]
[1750690082724,12.51034762,2285.1,2284.5,0.2213009]
[1750690082926,0.8511,2284.8,2284.6,4.37712512]
[1750690083367,3.40294762,2285.1,2284.8,4.37658811]
[1750690083529,0.8926,2285.1,2284.9,4.37652671]
[1750690083731,0.8926,2285.1,2284.8,4.37663863]
[1750690083927,0.8926,2285.1,2284.9,4.37653623]
[1750690084403,0.55,2285.4,2284.9,4.37653623]
[1750690084532,0.55,2285.2,2285.0,4.37623148]
[1750690084863,0.55,2285.2,2284.9,4.37646621]
[1750690085035,0.8486,2285.3,2285.0,4.37623678]
[1750690085362,0.55,2285.2,2284.6,4.37713385]
[1750690085562,0.55,2285.2,2284.7,4.37686741]
[1750690085768,0.55,2285.2,2284.7,4.37679678]
[1750690086156,0.55,2285.2,2284.8,4.3767313]
[1750690086764,0.55,2285.2,2284.8,4.37674036]
[1750690086932,12.86953833,2285.3,2284.6,12.00405063]
[1750690086933,0.55,2285.0,2284.7,4.37685127]
[1750690087135,0.55,2285.0,2284.6,12.00405071]
[1750690087335,0.55,2284.8,2284.5,0.2213009]
[1750690087532,0.827,2284.9,2284.5,0.2213009]
[1750690087779,0.827,2284.9,2284.6,4.37711993]
[1750690087949,2.31249538,2284.9,2284.5,4.5985087]
[1750690088545,10.55,2284.8,2284.5,0.2213009]
[1750690089675,22.34827833,2284.6,2284.5,0.2213009]
[1750690089844,11.4122,2284.5,2283.5,4.3791812]
[1750690090049,10.8622,2284.1,2283.5,4.37911978]
[1750690090245,0.55,2284.0,2283.5,4.37911978]
[1750690090871,0.55,2284.0,2283.7,4.3787706]
[1750690091043,0.55,2284.0,2283.5,4.37910768]
[1750690091240,0.55,2284.0,2283.3,7.626]
[1750690091465,10.0,2283.7,2283.4,4.37941194]
[1750690091663,10.0,2283.7,2283.0,7.625]
[1750690091936,0.8967,2283.8,2283.4,4.37930751]
[1750690092247,0.8967,2283.8,2283.4,4.37933489]
[1750690092248,0.55,2283.7,2283.4,4.37933489]
[1750690092452,0.55,2283.7,2283.4,4.37940678]
[1750690092661,0.55,2283.7,2283.3,4.37953054]
[1750690092871,10.55,2283.7,2283.2,4.37968988]
[1750690093070,13.78827783,2283.7,2283.2,4.37968988]
[1750690093271,13.78827783,2283.7,2283.3,4.37950503]
[1750690093655,13.78827783,2283.7,2283.4,4.37934311]
[1750690093857,11.4106,2283.4,2282.7,4.38065642]
[1750690094061,11.4106,2283.4,2282.1,4.38183343]
[1750690094062,0.8677,2282.9,2282.1,0.835]
[1750690094265,10.0,2282.7,2282.2,4.60293533]
[1750690094470,10.0,2282.7,2282.2,0.2213009]
[1750690094669,0.55,2282.6,2282.2,0.2213009]
[1750690094843,0.55,2282.6,2282.3,4.38145171]
[1750690095166,10.55,2282.4,2282.2,0.2213009]
[1750690095366,13.66200783,2282.4,2282.2,0.2213009]
[1750690095567,12.686,2282.3,2282.2,0.2213009]
[1750690095782,10.0,2282.3,2282.2,4.60303782]
[1750690096079,10.0,2282.3,2282.2,0.2213009]
[1750690096444,10.55,2282.3,2282.2,0.2213009]
[1750690096649,0.55,2282.0,2280.4,0.8672]
[1750690096966,20.59804783,2282.3,2280.5,4.38497896]
[1750690096967,10.8727,2281.0,2280.5,4.38497896]
[1750690097145,10.8727,2281.0,2280.1,0.8672]
[1750690097146,10.8727,2281.0,2280.6,4.7506865]
[1750690097479,1.4227,2281.3,2281.0,4.38393565]
[1750690097670,10.0,2281.1,2280.7,0.36602034]
[1750690097842,10.0,2280.8,2280.7,0.36602034]
[1750690098210,13.5597,2280.8,2280.7,0.36602034]
[1750690098755,21.80877833,2280.0,2279.9,0.2213009]
[1750690098956,24.53965616,2280.0,2279.9,0.2213009]
[1750690099508,11.4227,2280.0,2279.9,0.2213009]
[1750690099800,10.93607833,2280.2,2279.9,0.2213009]
[1750690100094,10.0,2280.1,2279.9,0.2213009]
[1750690100298,0.55,2280.0,2279.9,0.2213009]
[1750690101292,2.688,2280.0,2279.9,0.2213009]
[1750690101443,5.81350783,2280.0,2279.9,0.2213009]
[1750690102210,0.872,2279.9,2277.6,5.70950548]
[1750690102418,11.80807833,2279.9,2278.3,4.39423694]
[1750690102713,11.80807833,2279.9,2279.2,4.38732309]
[1750690102714,10.55,2279.7,2279.2,4.38732309]
[1750690103021,0.55,2279.3,2278.5,4.3888449]
[1750690103176,0.55,2279.3,2278.3,2.143]
[1750690103177,0.55,2279.1,2278.3,2.143]
[1750690103387,10.55,2279.1,2278.3,0.005]
[1750690103696,12.99960783,2279.1,2278.6,4.38853573]
[1750690103863,12.99960783,2279.1,2278.3,4.39412155]
[1750690104061,12.99960783,2279.1,2278.4,4.38904494]
[1750690104259,0.55,2279.1,2278.4,4.38895487]
[1750690104462,0.55,2279.1,2278.3,4.39411572]
[1750690104724,0.55,2279.1,2278.3,0.005]
[1750690104873,0.872,2279.2,2278.3,16.53319973]
[1750690105075,10.55,2279.4,2278.3,2.144]
[1750690105276,12.11796,2279.4,2278.8,4.38817015]
[1750690105520,12.11796,2279.4,2278.6,6.52763037]
[1750690105521,10.0,2279.4,2278.6,6.52763037]
[1750690105670,1.28035078,2279.8,2279.1,4.38758317]
[1750690105870,1.28035078,2279.8,2279.0,4.38788942]
[1750690106065,0.8568,2280.1,2279.1,2.139]
[1750690106279,0.8568,2280.1,2279.4,4.38696297]
[1750690106509,0.8568,2280.1,2279.5,4.38692549]
[1750690106803,0.8568,2280.1,2279.5,4.38681009]
[1750690107170,0.8568,2280.1,2279.2,4.38750438]
[1750690107511,2.15638,2280.1,2279.3,4.38714415]
[1750690107714,0.8568,2280.1,2279.1,2.139]
[1750690107867,10.93607833,2280.4,2279.1,2.139]
[1750690107868,0.8507,2280.4,2279.9,4.38598447]
[1750690108068,0.8507,2280.4,2279.8,4.38628494]
[1750690108370,0.8507,2280.4,2279.9,4.38613274]
[1750690108676,1.81767415,2280.4,2279.6,2.14]
[1750690108881,10.93607833,2280.0,2279.4,0.8476]
[1750690109077,0.55,2279.8,2279.3,4.38714615]
[1750690109285,0.55,2279.8,2279.2,4.38742182]
[1750690109698,0.55,2279.8,2279.1,14.196607]
[1750690109897,10.55,2279.6,2278.8,4.38826737]
[1750690110097,0.55,2279.4,2278.9,4.38807163]
[1750690110298,0.55,2279.4,2278.3,0.8415]
[1750690110512,0.55,2279.4,2278.7,4.38838348]
[1750690110701,0.55,2279.4,2278.4,14.20690384]
[1750690110886,0.55,2279.4,2278.4,4.38904494]
[1750690111097,0.55,2279.4,2278.7,4.38836021]
[1750690111409,0.55,2279.2,2278.3,0.8415]
[1750690111608,0.55,2278.9,2278.3,4.39415457]
[1750690111790,10.55,2278.7,2278.3,0.005]
[1750690113693,0.55,2279.0,2278.3,0.005]
[1750690113887,10.55,2278.8,2278.3,0.005]
[1750690114103,0.9014,2278.7,2278.3,0.005]
[1750690114305,1.4514,2278.4,2278.3,0.005]
[1750690114505,1.4514,2278.4,2277.3,0.005]
[1750690114506,0.55,2278.0,2277.3,0.005]
[1750690114706,0.55,2277.4,2277.3,0.005]
[1750690115303,34.40028616,2277.4,2277.3,0.005]
[1750690115505,22.35467833,2277.4,2277.3,0.005]
[1750690116209,22.78557609,2277.4,2277.3,0.005]
[1750690117120,10.55,2277.3,2276.2,4.39317226]
[1750690117304,10.55,2276.7,2276.1,0.8982]
[1750690117508,0.55,2277.2,2276.7,4.39216168]
[1750690117810,0.55,2277.2,2276.8,4.39199556]
[1750690117994,0.55,2277.2,2276.3,2.212]
[1750690118395,1.29949776,2277.4,2276.3,6.60508519]
[1750690118605,0.8882,2277.8,2277.4,4.39082744]
[1750690118907,1.32351221,2277.8,2276.9,4.3919364]
[1750690119108,11.82427833,2278.3,2277.7,4.39039381]
[1750690119420,11.82427833,2278.3,2277.3,5.27863462]
[1750690119421,3.41931426,2278.3,2277.8,4.39009657]
[1750690119620,13.48165557,2278.3,2277.3,0.8875]
[1750690119789,12.27071631,2278.3,2277.5,4.39063964]
[1750690119989,10.0,2277.6,2277.0,4.39156006]
[1750690120191,10.0,2277.6,2277.1,4.39140423]
[1750690120403,10.55,2277.8,2277.0,4.39160533]
[1750690120603,10.55,2277.8,2277.0,4.39161168]
[1750690120902,10.55,2277.8,2277.3,4.39098798]
[1750690121119,12.83645695,2278.2,2277.6,4.39047029]
[1750690121420,15.14683323,2278.2,2277.3,2.213]
[1750690121728,22.85745695,2278.4,2277.6,4.39048749]
[1750690121894,22.85745695,2278.4,2277.6,4.39047357]
[1750690122243,2.213,2278.4,2277.5,0.8789]
[1750690122388,2.213,2278.4,2277.9,4.39000252]
[1750690122587,10.0,2278.6,2277.7,4.39028791]
[1750690122823,20.65645695,2278.7,2277.9,4.38982699]
[1750690123001,0.8606,2278.6,2277.5,0.8789]
[1750690123209,0.8606,2278.6,2277.9,4.38987998]
[1750690123406,0.8606,2278.6,2277.5,0.8789]
[1750690123607,0.8606,2278.6,2277.2,4.39123919]
[1750690123608,10.8606,2278.2,2277.2,4.39123919]
[1750690123891,0.55,2277.7,2276.9,2.213]
[1750690124098,0.55,2278.0,2277.5,4.39076345]
[1750690124439,0.55,2278.0,2276.8,4.3921293]
[1750690124440,0.8606,2278.2,2277.4,3.0774]
[1750690124643,0.7968,2278.5,2277.9,4.38992838]
[1750690124823,10.7968,2278.5,2277.8,4.39002886]
[1750690125145,0.7968,2278.5,2278.0,4.3896249]
[1750690125290,0.7968,2278.9,2278.2,4.38932993]
[1750690125489,0.36601152,2278.8,2277.8,4.39020107]
[1750690125694,0.36601152,2278.8,2277.4,0.8644]
[1750690125896,10.0,2278.2,2277.5,2.213]
[1750690126205,0.55,2278.1,2277.6,4.39048605]
[1750690126400,0.55,2278.1,2277.7,4.39037318]
[1750690126728,0.55,2278.4,2277.8,4.39000933]
[1750690127027,0.55,2278.4,2278.0,4.38980488]
[1750690127235,0.55,2278.4,2277.7,4.39039381]
[1750690127403,0.55,2278.4,2277.5,6.60374897]
[1750690127737,0.55,2278.4,2277.7,4.39033741]
[1750690127907,1.13468,2278.3,2277.7,2.213]
[1750690128097,0.55,2278.4,2277.8,4.39011639]
[1750690128300,0.55,2278.4,2277.7,2.213]
[1750690128533,0.55,2278.1,2277.4,0.8644]
[1750690128727,0.55,2278.1,2277.2,2.213]
[1750690128894,0.55,2277.9,2277.5,4.39060641]
[1750690129230,0.45013052,2278.4,2277.9,4.38985361]
[1750690129430,0.8126,2278.6,2278.0,4.38978084]
[1750690129634,0.8126,2278.6,2278.1,4.38947952]
[1750690129791,0.8126,2278.6,2278.1,4.38953141]
[1750690129992,0.8126,2278.6,2277.9,4.39000834]
[1750690130318,0.8126,2278.6,2278.0,6.60270764]
[1750690130517,0.8126,2278.6,2278.2,4.38926487]
[1750690130709,0.8126,2278.6,2278.0,2.213]
[1750690131025,0.8126,2278.6,2278.2,4.38934581]
[1750690131231,0.8126,2278.6,2278.2,4.38940321]
[1750690131632,0.8126,2278.6,2277.8,4.39020107]
[1750690131931,10.55,2278.8,2278.3,4.38913574]
[1750690132348,0.8559,2278.9,2278.3,0.8774]
[1750690132532,0.36601152,2278.8,2278.3,0.8774]
[1750690132732,0.36601152,2278.8,2278.7,4.3884671]
[1750690133325,0.8058,2279.6,2279.0,4.38775805]
[1750690133525,0.06569393,2279.5,2279.0,4.38788942]
[1750690133745,0.06569393,2279.5,2278.9,6.60105687]
[1750690133947,0.06569393,2279.5,2278.9,7.44507235]
[1750690134153,0.06569393,2279.5,2279.2,4.38749518]
[1750690134652,0.06569393,2279.5,2279.1,4.38758379]
[1750690134849,0.06569393,2279.5,2279.4,4.38711941]
[1750690135420,7.76,2279.9,2279.8,4.38634967]
[1750690135620,1.24666738,2280.2,2279.5,5.23091257]
[1750690135820,1.24666738,2280.2,2280.0,4.38577864]
[1750690136020,1.24666738,2280.2,2280.1,4.38577255]
[1750690136230,1.24666738,2280.2,2280.0,4.38587329]
[1750690136452,8.6117,2280.6,2280.2,4.38548536]
[1750690136621,8.6117,2280.6,2279.5,0.844]
[1750690136622,10.0,2280.5,2280.3,4.38526539]
[1750690136949,8.6117,2280.6,2279.9,2.212]
[1750690137157,0.8358,2280.9,2279.9,2.212]
[1750690137352,15.565,2281.5,2280.8,4.38442651]
[1750690137568,2.3765,2281.4,2281.0,4.38387896]
[1750690137853,0.06569393,2281.3,2280.6,7.811]
[1750690138029,0.06569393,2281.3,2280.9,4.38408882]
[1750690138225,0.06569393,2281.3,2281.2,4.38365772]
[1750690138438,0.06569393,2281.3,2280.7,4.38461875]
[1750690138653,0.06569393,2281.3,2281.2,4.38365772]
[1750690139537,0.43700974,2281.7,2280.4,4.38503086]
[1750690139739,10.0,2281.3,2280.3,7.83]
[1750690140064,0.8261,2281.4,2280.3,7.83]
[1750690140263,12.83645695,2281.8,2281.6,4.3828892]
[1750690140264,0.883,2281.8,2281.6,4.3828892]
[1750690140425,13.27724159,2281.8,2281.1,10.8774]
[1750690140626,10.0,2281.3,2280.7,20.606]
[1750690140845,10.55,2280.9,2280.5,4.38497246]
[1750690141043,10.55,2280.9,2279.8,0.879]
[1750690141256,10.55,2280.9,2279.9,2.212]
[1750690141459,10.55,2280.9,2280.3,4.38529286]
[1750690141629,10.55,2280.9,2280.3,4.38519666]
[1750690141828,13.7506457,2280.9,2280.0,2.212]
[1750690142037,13.7506457,2280.9,2280.4,4.38515992]
[1750690142345,13.2006457,2280.9,2280.5,4.38499984]
[1750690142528,0.55,2280.6,2279.8,10.955]
[1750690142728,10.0,2280.3,2280.0,4.38594569]
[1750690142941,10.0,2280.3,2279.9,4.3861344]
[1750690142942,0.816,2280.4,2280.1,4.38560748]
[1750690143137,0.816,2280.4,2280.0,4.38588466]